Organisation Name,Organisation Code,Directorate/Service,Service Category Label,Service Code,Supplier Name,Supplier Reference,Payment Date,Transaction Number,Net Payment,Purpose of Spend
North West Leicestershire District Council,31UH,Housing Repairs,HRA Housing Repairs & Maintenance,HRAHRM,Alexandra Plc,A000033,07/03/2018,1357886,284.65,Protective Clothing
North West Leicestershire District Council,31UH,Legal & Democratic,Business Development Team,BDT,InPhase Ltd,A044108,27/03/2018,1358067,20000,Consultants Fees
North West Leicestershire District Council,31UH,Street Management,Environment Waste Management,ENOWM,Apse,A018837,07/03/2018,1358272,350,Training Courses and Expenses
North West Leicestershire District Council,31UH,Housing,HRA Performance & Business Support,HRAPBS,Geoff Smith Associates Ltd,A041931,21/03/2018,1358321,288.52,Stationery
North West Leicestershire District Council,31UH,Housing Strategy,Community - Housing Strategy,HS,ESPO,A000958,14/03/2018,1358347,466,Furniture
North West Leicestershire District Council,31UH,Street Management,Environment - Street Scene,ESS,County Drains Leicester Ltd,A024295,07/03/2018,1358714,578,General Repairs
North West Leicestershire District Council,31UH,Leisure & Culture,Cultural Services Arts & Events,CULTEV,Leicestershire Co-op Band,A027523,07/03/2018,1358794,250,Civic Functions
North West Leicestershire District Council,31UH,Planning & Development,Environment - Development Control,EDC,Euro RSCG People T/A Havas People Ltd,A001395,14/03/2018,1358831,1032.62,Advertising
North West Leicestershire District Council,31UH,Planning & Development,Environment Community Planning,ECP,The CCTV User Group Ltd,A043781,07/03/2018,1359193,275,CCTV Control Room
North West Leicestershire District Council,31UH,Housing,HRA Housing Management,HRAHM,AIM Mediation Ltd,A041734,07/03/2018,1359194,475,Legal & Professional Services
North West Leicestershire District Council,31UH,Housing,HRA Older Persons Service,HRAOPS,Tunstall Healthcare (UK) Limited,A001701,07/03/2018,1359237,2560,Alarm System Telephones
North West Leicestershire District Council,31UH,Leisure Centres,Hood Park Leisure Centre,HPLC,Zoggs International Ltd,A001833,27/03/2018,1359241,673.22,Equipment For Resale
North West Leicestershire District Council,31UH,Street Management,Environment Transport,ENOT,Ford & Slater Group Ltd,A000625,07/03/2018,1359477,400,Vehicle Repairs/Parts
North West Leicestershire District Council,31UH,Communications,Corporate - Customer Services,CS,Online Ergonomics Ltd,A034750,07/03/2018,1359504,367.1,Stationery
North West Leicestershire District Council,31UH,Leisure Centres,Hermitage Leisure Centre,HLC,OMS,A044622,14/03/2018,1359515,420,Training Courses and Expenses
North West Leicestershire District Council,31UH,Street Management,Environment - Street Scene,ESS,SLH Planning Solutions Limited,A044102,07/03/2018,1359570,3112.95,Consultants Fees
North West Leicestershire District Council,31UH,Planning & Development,Environment Planning Policy,EPP,Leicestershire County Council,A027423,07/03/2018,1359571,568.08,Legal & Professional Services
North West Leicestershire District Council,31UH,Property Services,Property Facilities Management,PROPFM,Eaton Electrical Ltd,A044048,07/03/2018,1359572,2070,General Repairs
North West Leicestershire District Council,31UH,Information Technology,ICT Services,ICT,Canon UK Ltd,A040459,07/03/2018,1359574,331.61,Photo Copier - Copy Charges Rental
North West Leicestershire District Council,31UH,Information Technology,ICT Services,ICT,Canon UK Ltd,A040459,07/03/2018,1359575,481.05,Equipment Operating Leases
North West Leicestershire District Council,31UH,Legal & Democratic,Business Development Team,BDT,Touchstone Associates Limited,A044281,07/03/2018,1359580,850,Training Courses and Expenses
North West Leicestershire District Council,31UH,Legal & Democratic,Business Development Team,BDT,Delib,A039059,07/03/2018,1359581,1165.84,Citizen Space- Community Subscription
North West Leicestershire District Council,31UH,Property Services,Property Facilities Management,PROPFM,Admiral Cleaning Supplies Ltd,A040930,07/03/2018,1359604,310.13,Cleaning & Domestic Equipment
North West Leicestershire District Council,31UH,Street Management,Environment Transport,ENOT,Ford & Slater Group Ltd,A000625,07/03/2018,1359605,405.6,Transport Costs - Engine Oil
North West Leicestershire District Council,31UH,Leisure Centres,Hermitage Leisure Centre,HLC,T Denman & Sons (Melton Mowbray) Ltd,A030887,07/03/2018,1359611,295,Electrical testing
North West Leicestershire District Council,31UH,Street Management,Environment Transport,ENOT,Vehicle Inspecition and Training Services,A044049,07/03/2018,1359616,256,Training Courses and Expenses
North West Leicestershire District Council,31UH,Property Services,Property Commercial Lettings,PROPCL,John Merison BMC Ltd,A001092,07/03/2018,1359623,388.28,General Repairs
North West Leicestershire District Council,31UH,Environmental Health,Environmental Health & Licensing,EEHL,Mega Arumugam,A043638,07/03/2018,1359624,350,Training Courses and Expenses
North West Leicestershire District Council,31UH,Housing Repairs,HRA Housing Repairs & Maintenance,HRAHRM,Emperor Scaffolding Limited,A038405,07/03/2018,1359625,470,Hire Of Operational Equipment
North West Leicestershire District Council,31UH,Property Services,Property Commercial Lettings,PROPCL,John Merison BMC Ltd,A001092,07/03/2018,1359629,435.72,General Repairs
North West Leicestershire District Council,31UH,Property Services,Property Commercial Lettings,PROPCL,John Merison BMC Ltd,A001092,07/03/2018,1359632,1175.31,General Repairs
North West Leicestershire District Council,31UH,Property Services,Property Facilities Management,PROPFM,John Merison BMC Ltd,A001092,07/03/2018,1359633,437,General Repairs
North West Leicestershire District Council,31UH,Leisure Centres,Hermitage Leisure Centre,HLC,Dura-Sport (Leisure Care) Ltd,A041815,07/03/2018,1359636,350,Service Contracts
North West Leicestershire District Council,31UH,Leisure Centres,Hermitage Bar & Catering,HLBC,Siemens Financial Services Ltd,A029510,07/03/2018,1359640,617.76,Equipment Operating Leases
North West Leicestershire District Council,31UH,Leisure Centres,Hermitage Leisure Centre,HLC,Measham Leisure Centre,A027454,07/03/2018,1359641,1612.37,Measham LC Lifestyle DD
North West Leicestershire District Council,31UH,Leisure Centres,Hermitage Bar & Catering,HLBC,Snackline Direct Ltd,A042489,07/03/2018,1359642,435.25,Catering Provisions
North West Leicestershire District Council,31UH,Information Technology,ICT Services,ICT,Canon UK Ltd,A040459,07/03/2018,1359648,2057.56,Photo Copier - Copy Charges Rental
North West Leicestershire District Council,31UH,Street Management,Environment Parks,ENOP,Central Construction Services,A004448,07/03/2018,1359651,256.9,Operational Equipment - Purchases
North West Leicestershire District Council,31UH,Legal & Democratic,Legal Services,LDLS,Venn Group Limited,A028530,07/03/2018,1359654,714.02,Agency Staff
North West Leicestershire District Council,31UH,Communications,Corporate - Communications,CP,One Stop Promotions (Leics) Ltd,A001240,07/03/2018,1359655,818.1,Grants
North West Leicestershire District Council,31UH,Street Management,Environment - Street Scene,ESS,John Merison BMC Ltd,A001092,21/03/2018,1359657,546.72,General Repairs
North West Leicestershire District Council,31UH,Housing,HRA Older Persons Service,HRAOPS,Tunstall Healthcare (UK) Limited,A001701,07/03/2018,1359661,1194,Alarm System Telephones
North West Leicestershire District Council,31UH,Property Services,Property Facilities Management,PROPFM,Watertec Compliance Solutions Ltd,A044559,21/03/2018,1359663,300,External Decorations
North West Leicestershire District Council,31UH,Leisure Centres,Hood Park Leisure Centre,HPLC,J P Lennard Ltd,A000969,07/03/2018,1359666,252.01,Equipment For Resale
North West Leicestershire District Council,31UH,Leisure Centres,Hood Park Leisure Centre,HPLC,Dura-Sport (Leisure Care) Ltd,A041815,07/03/2018,1359667,280,General Repairs
North West Leicestershire District Council,31UH,Street Management,Environment Transport,ENOT,Selby's Garage (Woodhouse) Ltd,A044011,07/03/2018,1359677,337.62,Hire Of Operational Equipment
North West Leicestershire District Council,31UH,Legal & Democratic,Civic Expenses,LDCE,G and G Signs,A001111,07/03/2018,1359684,406.16,Signs & Notices
North West Leicestershire District Council,31UH,Street Management,Environment Transport,ENOT,Keith Cook Training Services,A027792,07/03/2018,1359687,1986,Training Courses and Expenses
North West Leicestershire District Council,31UH,Finance,Exchequer Services,EXCH,Total Mobile,A025004,07/03/2018,1359690,712.5,Computing
North West Leicestershire District Council,31UH,Leisure & Culture,Sport & Physical Activity,SPA,Revolution,A001386,07/03/2018,1359695,440,LSA - CLUB ACTIV8
North West Leicestershire District Council,31UH,Street Management,Environment Waste Management,ENOWM,Whitespace Work Software Ltd,A041243,14/03/2018,1359696,950,Computing
North West Leicestershire District Council,31UH,Housing,HRA Older Persons Service,HRAOPS,Tunstall Healthcare (UK) Limited,A001701,27/03/2018,1359701,1092,Alarm System Telephones
North West Leicestershire District Council,31UH,Property Services,Property Commercial Lettings,PROPCL,County Drains Leicester Ltd,A024295,14/03/2018,1359709,360,General Repairs
North West Leicestershire District Council,31UH,Housing,HRA Housing Management,HRAHM,Kaefer Ltd,A044187,07/03/2018,1359720,2304.34,Contract Payments (Dws) Ext
North West Leicestershire District Council,31UH,Housing Repairs,HRA Housing Repairs & Maintenance,HRAHRM,Oneserve Ltd,A041321,07/03/2018,1359721,7915,Computing
North West Leicestershire District Council,31UH,Housing Repairs,HRA Housing Repairs & Maintenance,HRAHRM,Elan Removals,A041305,07/03/2018,1359722,665,Removals and Storage Services
North West Leicestershire District Council,31UH,Finance,Exchequer Services,EXCH,Comensura Limited,A036958,07/03/2018,1359726,29695.13,Agency Staff
North West Leicestershire District Council,31UH,Housing,HRA Housing Management,HRAHM,Needhams,A044640,07/03/2018,1359727,500,Ground Rents & Wayleaves
North West Leicestershire District Council,31UH,Housing,HRA Housing Management,HRAHM,A J Contracts,A034116,07/03/2018,1359731,744,Contract Cleaning
North West Leicestershire District Council,31UH,Street Management,Environment Transport,ENOT,Watling JCB Ltd,A032114,07/03/2018,1359734,855,Scheduled Servicing - Parts
North West Leicestershire District Council,31UH,Environmental Health,Environmental Services,EES,Water Plus Limited,A044043,07/03/2018,1359735,452.1,Water Charges (Metered)
North West Leicestershire District Council,31UH,Street Management,Environment Parks,ENOP,FAROL Limited,A041905,14/03/2018,1359738,4911,Operational Equipment
North West Leicestershire District Council,31UH,Environmental Health,Environmental Services,EES,Water Plus Limited,A044043,07/03/2018,1359741,708.17,Water Charges (Metered)
North West Leicestershire District Council,31UH,Street Management,Environment Transport,ENOT,Digraph Transport Supplies Ltd,A000486,14/03/2018,1359743,354.29,Batteries
North West Leicestershire District Council,31UH,Property Services,Property Commercial Lettings,PROPCL,Purchase Power,A008204,07/03/2018,1359818,1885.03,Postages
North West Leicestershire District Council,31UH,Property Services,Property Facilities Management,PROPFM,Regarde Security Ltd,A013049,07/03/2018,1359819,459.2,Building Security
North West Leicestershire District Council,31UH,Property Services,Property Facilities Management,PROPFM,Regarde Security Ltd,A013049,07/03/2018,1359820,440,Operational Equipment
North West Leicestershire District Council,31UH,Housing Strategy,Community - Housing Strategy,HS,ACM Training,A035344,07/03/2018,1359825,999,Training Courses and Expenses
North West Leicestershire District Council,31UH,Finance,Exchequer Services,EXCH,Leicestershire County Council,A000951,07/03/2018,1359826,10916.66,Deductions Paid Over
North West Leicestershire District Council,31UH,Housing,HRA Performance & Business Support,HRAPBS,Love2Reward,A036807,07/03/2018,1359828,507.5,Housing Voucher scheme
North West Leicestershire District Council,31UH,Street Management,Environment Transport,ENOT,Salt Union Ltd,A001433,07/03/2018,1359829,1194.16,Routine Ground Maintenance
North West Leicestershire District Council,31UH,Information Technology,ICT Services,ICT,Idox Software Ltd,A034157,07/03/2018,1359830,600,Computing
North West Leicestershire District Council,31UH,Information Technology,ICT Services,ICT,Idox Software Ltd,A034157,07/03/2018,1359831,950,Computing
North West Leicestershire District Council,31UH,Information Technology,ICT Services,ICT,Idox Software Ltd,A034157,07/03/2018,1359832,950,Computing
North West Leicestershire District Council,31UH,Information Technology,ICT Services,ICT,Cuttlefish Multimedia Ltd,A032102,07/03/2018,1359834,1718.33,Website Maintenance
North West Leicestershire District Council,31UH,Street Management,Environment Parks,ENOP,Aggregate Industries Uk Ltd,A000940,14/03/2018,1359842,1899.33,Operational Equipment - Purchases
North West Leicestershire District Council,31UH,Street Management,Environment Parks,ENOP,R Pochin Limited,A001313,07/03/2018,1359843,633.74,Operational Equipment - Purchases
North West Leicestershire District Council,31UH,Street Management,Environment Parks,ENOP,Regarde Security Ltd,A013049,07/03/2018,1359844,520.7,Security Services
North West Leicestershire District Council,31UH,Housing Repairs,HRA Housing Repairs & Maintenance,HRAHRM,Emperor Scaffolding Limited,A038405,07/03/2018,1359849,700,Hire Of Operational Equipment
North West Leicestershire District Council,31UH,Housing Repairs,HRA Housing Repairs & Maintenance,HRAHRM,NICEIC Sales,A026251,07/03/2018,1359851,455,Maintenance contract
North West Leicestershire District Council,31UH,Housing,HRA Housing Management,HRAHM,Redacted- Personal Data,A044644,07/03/2018,1359852,250,Under Occupancy Incentives
North West Leicestershire District Council,31UH,Housing,HRA Housing Management,HRAHM,Redacted- Personal Data,A044645,07/03/2018,1359853,250,Under Occupancy Incentives
North West Leicestershire District Council,31UH,Housing,HRA Housing Management,HRAHM,Redacted- Personal Data,A044646,07/03/2018,1359854,250,Under Occupancy Incentives
North West Leicestershire District Council,31UH,Street Management,Environment Parks,ENOP,Central Construction Services,A004448,07/03/2018,1359859,269.31,Operational Equipment - Purchases
North West Leicestershire District Council,31UH,Housing,HRA Performance & Business Support,HRAPBS,Coalville Yellow Cabs,A041983,07/03/2018,1359860,406.63,Public Transport
North West Leicestershire District Council,31UH,Property Services,Property Facilities Management,PROPFM,Fire Proof Ltd,A039911,07/03/2018,1359861,1640,General Repairs
North West Leicestershire District Council,31UH,Housing Repairs,HRA Housing Repairs & Maintenance,HRAHRM,TECSERV UK LIMITED,A028261,07/03/2018,1359874,597.44,Contract Payments (Dws) Ext
North West Leicestershire District Council,31UH,Housing Repairs,HRA Housing Repairs & Maintenance,HRAHRM,Orbis Property Protection Ltd,A028149,07/03/2018,1359885,373,Void Property Clearance Services
North West Leicestershire District Council,31UH,Housing Repairs,HRA Housing Repairs & Maintenance,HRAHRM,Laker BMS Ltd,A031787,07/03/2018,1359892,331.88,Housing repairs
North West Leicestershire District Council,31UH,Housing Repairs,HRA Housing Repairs & Maintenance,HRAHRM,Laker BMS Ltd,A031787,07/03/2018,1359893,289,Housing repairs
North West Leicestershire District Council,31UH,Housing Repairs,HRA Housing Repairs & Maintenance,HRAHRM,Laker BMS Ltd,A031787,07/03/2018,1359894,289,Housing repairs
North West Leicestershire District Council,31UH,Housing Repairs,HRA Housing Repairs & Maintenance,HRAHRM,Laker BMS Ltd,A031787,07/03/2018,1359895,289,Housing repairs
North West Leicestershire District Council,31UH,Finance,Exchequer Services,EXCH,Inchcape Fleet Solutions,A039405,07/03/2018,1359897,319.2,Vehicle Leasing
North West Leicestershire District Council,31UH,Finance,Exchequer Services,EXCH,Click Travel Ltd,A044308,07/03/2018,1359898,567.65,Travel and Accomodation
North West Leicestershire District Council,31UH,Housing Repairs,HRA Housing Repairs & Maintenance,HRAHRM,Robert Woodhead Ltd,A043924,07/03/2018,1359899,246439.89,Housing- New build
North West Leicestershire District Council,31UH,Leisure Centres,Hermitage Leisure Centre,HLC,City Electrical Factors Limited,A035306,07/03/2018,1359901,419.64,Health & Safety Repairs/Maintenance
North West Leicestershire District Council,31UH,Leisure Centres,Hermitage Leisure Centre,HLC,Gladstone MRM Ltd,A024642,07/03/2018,1359902,605.5,Computing
North West Leicestershire District Council,31UH,Leisure Centres,Hermitage Bar & Catering,HLBC,Molson Coors Brewing Company (UK) Ltd,A044397,07/03/2018,1359911,290.45,Bar Provisions
North West Leicestershire District Council,31UH,Housing Repairs,HRA Housing Repairs & Maintenance,HRAHRM,John Lester Partnershiip Ltd,A044485,07/03/2018,1359912,4880,Legal & Professional Services
North West Leicestershire District Council,31UH,Finance,Financial Planning,FINPLA,Hinckley & Bosworth Borough Council,A000770,07/03/2018,1359913,37203,Shared Revs & Bens Partnership costs
North West Leicestershire District Council,31UH,Finance,Financial Planning,FINPLA,Hinckley & Bosworth Borough Council,A000770,07/03/2018,1359914,214481.85,Shared Revs & Bens Partnership costs
North West Leicestershire District Council,31UH,Street Management,Environment Transport,ENOT,Brush Technology Ltd,A044453,07/03/2018,1359915,837.9,Repairs - Parts
North West Leicestershire District Council,31UH,Housing,HRA Housing Management,HRAHM,Shakespeare Martineau,A000133,08/03/2018,1359921,675000,Purchase of Land/Buildings
North West Leicestershire District Council,31UH,Finance,Financial Planning,FINPLA,Cornwall  Council,A031018,08/03/2018,1359922,34092.47,Policy Lending
North West Leicestershire District Council,31UH,Communications,Corporate - Communications,CP,Neopost Limited,A000133,08/03/2018,1359923,1000,Postages
North West Leicestershire District Council,31UH,Planning & Development,Environment - Development Control,EDC,NHS West Leicestershire,A000133,08/03/2018,1359924,25200,Section 106 Payment
North West Leicestershire District Council,31UH,Finance,Financial Planning,FINPLA,Leicestershire County Council,A000950,08/03/2018,1359925,3805046,Precept
North West Leicestershire District Council,31UH,Finance,Financial Planning,FINPLA,Leicestershire County Council,A000950,08/03/2018,1359926,1832634,Precept
North West Leicestershire District Council,31UH,Finance,Financial Planning,FINPLA,Department for Communities & Local Government,A028518,08/03/2018,1359927,2268113,Subsidy Receipts & Repayments
North West Leicestershire District Council,31UH,Finance,Financial Planning,FINPLA,The Office of the Police and Crime Commissioner for Leicestershire,A007096,08/03/2018,1359928,608107.76,Precept
North West Leicestershire District Council,31UH,Finance,Financial Planning,FINPLA,"Leicester, Leicesershire and Rutland Combined Fire Authority",A028339,08/03/2018,1359929,204101,Precept
North West Leicestershire District Council,31UH,Corporate Director,Human Resources,HR,The Disclosure & Barring Service,A027625,08/03/2018,1359935,660,Criminal Records Bureau
North West Leicestershire District Council,31UH,Finance,Exchequer Services,EXCH,Vodafone Limited,A001861,08/03/2018,1359937,1896.23,Mobile Telephones
North West Leicestershire District Council,31UH,Finance,Exchequer Services,EXCH,ESPO,A000958,08/03/2018,1359938,17832.59,Gas
North West Leicestershire District Council,31UH,Finance,Exchequer Services,EXCH,ESPO,A000958,08/03/2018,1359939,9270.13,Gas
North West Leicestershire District Council,31UH,Planning & Development,Environment Community Planning,ECP,Century Electronic Security Limited,A020453,14/03/2018,1359941,4548,CCTV Expenditure
North West Leicestershire District Council,31UH,Street Management,Environment Transport,ENOT,Partic Motor Spares Ltd,A042528,14/03/2018,1359948,311.15,Scheduled Servicing - Parts
North West Leicestershire District Council,31UH,Legal & Democratic,Business Development Team,BDT,Delib,A039059,27/03/2018,1359952,5829.16,Citizen Space- Community Subscription
North West Leicestershire District Council,31UH,Housing,HRA Performance & Business Support,HRAPBS,Alysium Consulting,A043813,14/03/2018,1359963,2150,Computing
North West Leicestershire District Council,31UH,Housing,HRA Performance & Business Support,HRAPBS,Alysium Consulting,A043813,27/03/2018,1359964,4290,Computing
North West Leicestershire District Council,31UH,Property Services,Property Facilities Management,PROPFM,Geze Uk Limited,A023130,14/03/2018,1359967,315,Alt & Mtce-Fixed Plant
North West Leicestershire District Council,31UH,Corporate Director,Human Resources,HR,Wider Plan Ltd,A043948,14/03/2018,1359972,5231,Staff benefit scheme
North West Leicestershire District Council,31UH,Finance,Exchequer Services,EXCH,Comensura Limited,A036958,14/03/2018,1359973,37668.09,Agency Staff
North West Leicestershire District Council,31UH,Finance,Revenues,REVS,Bristow & Sutor,A031060,14/03/2018,1359977,665.87,Enforcement Agent Fees
North West Leicestershire District Council,31UH,Finance,Revenues,REVS,Bristow & Sutor,A031060,14/03/2018,1359978,343.05,Enforcement Agent Fees
North West Leicestershire District Council,31UH,Street Management,Environment Transport,ENOT,Pakawaste Ltd,A032627,14/03/2018,1359980,48096,Items To Be Leased
North West Leicestershire District Council,31UH,Leisure Centres,Hood Park Leisure Centre,HPLC,Greasley Electronics Ltd,A040963,21/03/2018,1359981,299,Operational Equipment
North West Leicestershire District Council,31UH,Street Management,Environment Waste Management,ENOWM,One51 ES Plastics(UK) Ltd  t/a MGB Plastics,A044595,14/03/2018,1359982,8700,General Materials
North West Leicestershire District Council,31UH,Street Management,Environment Waste Management,ENOWM,Groundsman Tools & Supplies,A030744,14/03/2018,1359983,866.25,Operational Equipment
North West Leicestershire District Council,31UH,Housing,HRA Housing Management,HRAHM,Coalville Signs,A000370,14/03/2018,1359984,492.5,General Repairs
North West Leicestershire District Council,31UH,Street Management,Environment Waste Management,ENOWM,LBK Packaging,A028619,14/03/2018,1359987,375,General Materials
North West Leicestershire District Council,31UH,Housing,HRA Performance & Business Support,HRAPBS,TPAS Limited,A028863,14/03/2018,1359988,265,Training Courses and Expenses
North West Leicestershire District Council,31UH,Property Services,Property Facilities Management,PROPFM,Wm Saunders Partnership LLP,A035772,14/03/2018,1359989,500,General Repairs
North West Leicestershire District Council,31UH,Corporate Director,Human Resources,HR,M & S Solicitors Ltd,A043214,14/03/2018,1359991,291.67,Legal & Professional Services
North West Leicestershire District Council,31UH,Corporate Director,Human Resources,HR,Kalu Training and Consultancy,A043918,14/03/2018,1359992,850,Corporate Training
North West Leicestershire District Council,31UH,Corporate Director,Human Resources,HR,Kalu Training and Consultancy,A043918,14/03/2018,1359993,850,Corporate Training
North West Leicestershire District Council,31UH,Street Management,Environment Transport,ENOT,Indespension Limited,A001989,14/03/2018,1360003,456.5,Repairs - Parts
North West Leicestershire District Council,31UH,Information Technology,ICT Services,ICT,Freedom Communications (UK) Ltd,A032826,14/03/2018,1360006,1543.32,Admin Equipment - Maintenance
North West Leicestershire District Council,31UH,Legal & Democratic,Legal Services,LDLS,Venn Group Limited,A028530,14/03/2018,1360013,749.45,Agency Staff
North West Leicestershire District Council,31UH,Property Services,Property Commercial Lettings,PROPCL,British Telecommunications Plc,A000233,14/03/2018,1360015,540.03,Telephones
North West Leicestershire District Council,31UH,Information Technology,ICT Services,ICT,Virgin Media Business,A008908,14/03/2018,1360019,2973.58,Telephone Charge / Rental
North West Leicestershire District Council,31UH,Street Management,Environment Waste Management,ENOWM,Straight Plc,A024906,14/03/2018,1360020,3696,General Materials
North West Leicestershire District Council,31UH,Housing,HRA Housing Management,HRAHM,Leicestershire County Council,A000950,14/03/2018,1360023,9046.26,Contract Cleaning
North West Leicestershire District Council,31UH,Housing,HRA Housing Management,HRAHM,Severn Trent Water Limited,A001468,14/03/2018,1360024,8758.13,Water Charges (Metered)
North West Leicestershire District Council,31UH,Street Management,Environment Transport,ENOT,Westbury Industrial Supplies Limited,A009933,14/03/2018,1360033,285.6,Protective Clothing
North West Leicestershire District Council,31UH,Street Management,Environment - Street Scene,ESS,EPT SERVICES,A039764,21/03/2018,1360034,1219,Operational Equipment
North West Leicestershire District Council,31UH,Street Management,Environment - Street Scene,ESS,EPT SERVICES,A039764,21/03/2018,1360035,4375,Operational Equipment
North West Leicestershire District Council,31UH,Street Management,Environment - Street Scene,ESS,EPT SERVICES,A039764,21/03/2018,1360036,1998,Operational Equipment
North West Leicestershire District Council,31UH,Housing,HRA Performance & Business Support,HRAPBS,Michael Page International Recruitment Ltd,A041893,21/03/2018,1360048,2017.75,Agency Staff
North West Leicestershire District Council,31UH,Information Technology,ICT Services,ICT,Premier Paper Group,A042438,14/03/2018,1360049,517.15,Consumable Materials
North West Leicestershire District Council,31UH,Information Technology,ICT Services,ICT,Canon UK Ltd,A040459,14/03/2018,1360051,268.45,General Operational Equipment
North West Leicestershire District Council,31UH,Street Management,Environment Transport,ENOT,Selby's Garage (Woodhouse) Ltd,A044011,14/03/2018,1360055,318.24,Hire Of Operational Equipment
North West Leicestershire District Council,31UH,Information Technology,ICT Services,ICT,Foursys Ltd,A029908,14/03/2018,1360057,253,Administrative Equipment
North West Leicestershire District Council,31UH,Housing Repairs,HRA Housing Repairs & Maintenance,HRAHRM,Alliance Contracting Solutions Ltd,A043325,14/03/2018,1360059,47915.8,Place Based Envirnmental Improvements
North West Leicestershire District Council,31UH,Street Management,Environment Transport,ENOT,Dennis Eagle Limited,A000522,14/03/2018,1360063,619.44,Repairs - Parts
North West Leicestershire District Council,31UH,Street Management,Environment Parks,ENOP,Paragon Space Ltd,A044599,14/03/2018,1360066,16519,Contract Payments (Other) Ext
North West Leicestershire District Council,31UH,Leisure & Culture,Cultural Services Arts & Events,CULTEV,ADDO Creative,A044638,21/03/2018,1360072,4000,Training Courses and Expenses
North West Leicestershire District Council,31UH,Leisure & Culture,Cultural Services TIC,CULTIC,Hey  Beatles,A042848,14/03/2018,1360073,783,Theatre Tickets
North West Leicestershire District Council,31UH,Legal & Democratic,Legal Services,LDLS,BPP Professional Education,A044626,14/03/2018,1360076,1297,Training Courses and Expenses
North West Leicestershire District Council,31UH,Legal & Democratic,Legal Services,LDLS,Mr Andrew Harper,A044557,14/03/2018,1360077,500,Legal & Professional Services
North West Leicestershire District Council,31UH,Chief Exec,Chief Executive,CHEX,Dinc Limited T/A Dinc Creative,A044215,14/03/2018,1360078,2339,Legal & Professional Services
North West Leicestershire District Council,31UH,Chief Exec,Chief Executive,CHEX,Dinc Limited T/A Dinc Creative,A044215,14/03/2018,1360079,680,Legal & Professional Services
North West Leicestershire District Council,31UH,Chief Exec,Chief Executive,CHEX,Harris Lamb General Client Account,A036660,14/03/2018,1360080,2125,Legal Fees
North West Leicestershire District Council,31UH,Chief Exec,Chief Executive,CHEX,Infrastructure & Environment UK Ltd,A041786,14/03/2018,1360081,2164,Legal & Professional Services
North West Leicestershire District Council,31UH,Chief Exec,Chief Executive,CHEX,Infrastructure & Environment UK Ltd,A041786,14/03/2018,1360082,4908,Legal & Professional Services
North West Leicestershire District Council,31UH,Chief Exec,Chief Executive,CHEX,CBRE Ltd,A041437,14/03/2018,1360083,3750,Legal & Professional Services
North West Leicestershire District Council,31UH,Chief Exec,Chief Executive,CHEX,RPT Consulting Ltd,A043782,14/03/2018,1360084,973.5,Consultants Fees
North West Leicestershire District Council,31UH,Leisure Centres,Castle Donington Community College,CDCC,Elliott Group Limited,A005413,14/03/2018,1360093,472,Secure Storage
North West Leicestershire District Council,31UH,Leisure Centres,Hermitage Leisure Centre,HLC,Measham Leisure Centre,A027454,14/03/2018,1360094,708.31,Measham LC Lifestyle DD
North West Leicestershire District Council,31UH,Leisure Centres,Hermitage Leisure Centre,HLC,Admiral Cleaning Supplies Ltd,A040930,14/03/2018,1360095,1366.8,Water Treatment
North West Leicestershire District Council,31UH,Housing,HRA Housing Management,HRAHM,Sure Maintenance Ltd,A040460,14/03/2018,1360119,-467.4,Plumbing & Heating
North West Leicestershire District Council,31UH,Housing,HRA Housing Management,HRAHM,Sure Maintenance Ltd,A040460,14/03/2018,1360120,750,Plumbing & Heating
North West Leicestershire District Council,31UH,Finance,Financial Planning,FINPLA,Zurich Municipal,A001835,14/03/2018,1360124,2040,Miscellaneous Insurances
North West Leicestershire District Council,31UH,Housing,HRA Housing Management,HRAHM,E.on,A000528,14/03/2018,1360125,417.7,Electricity
North West Leicestershire District Council,31UH,Legal & Democratic,Legal Services,LDLS,Martin Lee & Co,A030613,14/03/2018,1360127,2642.5,External Legal Fees & Advice
North West Leicestershire District Council,31UH,Legal & Democratic,Legal Services,LDLS,InPhase Ltd,A044108,14/03/2018,1360128,603.55,Consultants Fees
North West Leicestershire District Council,31UH,Leisure Centres,Hermitage Bar & Catering,HLBC,Snackline Direct Ltd,A042489,14/03/2018,1360130,1120.42,Catering Provisions
North West Leicestershire District Council,31UH,Leisure Centres,Hermitage Bar & Catering,HLBC,Molson Coors Brewing Company (UK) Ltd,A044397,14/03/2018,1360131,5618.68,Bar Provisions
North West Leicestershire District Council,31UH,Leisure Centres,Hood Park Bar and Catering,HPBC,Snackline Direct Ltd,A042489,14/03/2018,1360133,1237.86,Bar Provisions
North West Leicestershire District Council,31UH,Environmental Health,Environmental Health & Licensing,EEHL,Eville And Jones Limited,A033670,14/03/2018,1360135,532.49,Vet Inspection
North West Leicestershire District Council,31UH,Street Management,Environment Transport,ENOT,Ford & Slater Group Ltd,A000625,14/03/2018,1360136,792,Vehicle Repairs/Parts
North West Leicestershire District Council,31UH,Planning & Development,Environment Community Planning,ECP,Broadland Guarding Services Ltd,A042635,14/03/2018,1360137,3772.98,Agency Staff
North West Leicestershire District Council,31UH,Street Management,Environment Transport,ENOT,Calor Gas Limited,A032686,14/03/2018,1360139,817.5,Gas
North West Leicestershire District Council,31UH,Housing,HRA Performance & Business Support,HRAPBS,Arena Partnership Ltd,A042656,14/03/2018,1360144,3350,Computing
North West Leicestershire District Council,31UH,Neighbourhoods & Communities,N & C Neighbourhoods,NACN,Ashby De La Zouch Town Council,A000091,14/03/2018,1360182,10000,Community Initiatives
North West Leicestershire District Council,31UH,Legal & Democratic,Electoral & Land Charges,LDELC,Royal Mail Group Plc,A001418,14/03/2018,1360213,1500,Postages
North West Leicestershire District Council,31UH,Information Technology,ICT Services,ICT,Orange Plc,A018592,14/03/2018,1360219,4299.64,Mobile Telephones
North West Leicestershire District Council,31UH,Finance,Financial Planning,FINPLA,NHS West Leicestershire,A042958,14/03/2018,1360222,216879.88,Section 106 Payment
North West Leicestershire District Council,31UH,Leisure Centres,Hood Park Leisure Centre,HPLC,Kingsfield Computer Products Ltd,A039732,14/03/2018,1360225,816.75,Operational Equipment
North West Leicestershire District Council,31UH,Housing Repairs,HRA Housing Repairs & Maintenance,HRAHRM,Michael Dyson Associates Ltd,A028431,14/03/2018,1360229,3000,Consultants Fees
North West Leicestershire District Council,31UH,Corporate Director,Human Resources,HR,Vivid Resourcing,A044601,14/03/2018,1360230,337.5,Agency Staff
North West Leicestershire District Council,31UH,Corporate Director,Human Resources,HR,Vivid Resourcing,A044601,14/03/2018,1360231,337.5,Agency Staff
North West Leicestershire District Council,31UH,Housing Repairs,HRA Housing Repairs & Maintenance,HRAHRM,Westleigh Developments Ltd,A039359,14/03/2018,1360232,85740.92,Housing - new build
North West Leicestershire District Council,31UH,Corporate Director,Human Resources,HR,GatenbySanderson Limited,A034524,14/03/2018,1360234,3112.3,Employee Advertising
North West Leicestershire District Council,31UH,Finance,Financial Planning,FINPLA,Castle Donington Parish Council,A000300,14/03/2018,1360236,50000,Local Community Project Contribution
North West Leicestershire District Council,31UH,Planning & Development,Environment - Town Centre/CCTV,ECCTV,Insomnia (Coalville) Ltd,A044665,14/03/2018,1360237,25000,Grants
North West Leicestershire District Council,31UH,Finance,Exchequer Services,EXCH,Amazon,A042250,15/03/2018,1360242,783.3,Admin Equipment
North West Leicestershire District Council,31UH,Finance,Exchequer Services,EXCH,Hoseasons,A042250,15/03/2018,1360243,1597,Temporary Accomodation
North West Leicestershire District Council,31UH,Finance,Exchequer Services,EXCH,NHF M3 Housing Ltd,A042250,15/03/2018,1360243,568,Training Courses and Expenses
North West Leicestershire District Council,31UH,Finance,Exchequer Services,EXCH,Screwfix,A042250,15/03/2018,1360243,304.07,Portable Heating
North West Leicestershire District Council,31UH,Legal & Democratic,Legal Services,LDLS,HMCTS,A033955,15/03/2018,1360244,476,Legal & Professional Services
North West Leicestershire District Council,31UH,Housing,HRA Housing Management,HRAHM,HMCTS,A033956,15/03/2018,1360245,1867,Legal & Professional Services
North West Leicestershire District Council,31UH,Finance,Financial Planning,FINPLA,Moray Council,A043912,15/03/2018,1360246,2500000,Policy Lending
North West Leicestershire District Council,31UH,Finance,Exchequer Services,EXCH,British Telecommunications Plc,A000233,15/03/2018,1360247,5306.6,Alarm System Telephones
North West Leicestershire District Council,31UH,Finance,Exchequer Services,EXCH,H M Land Registry,A000713,15/03/2018,1360248,480,Legal & Professional Services
North West Leicestershire District Council,31UH,Information Technology,ICT Services,ICT,ACS Systems (UK) Ltd T/a ACS Office Solutions,A043447,21/03/2018,1360249,1155,Computing
North West Leicestershire District Council,31UH,Planning & Development,Environment Community Planning,ECP,Baydale Control Systems Ltd,A042565,21/03/2018,1360253,2672.86,CCTV Control Room
North West Leicestershire District Council,31UH,Street Management,Environment Waste Management,ENOWM,Audaz Global Solutions Ltd,A044258,21/03/2018,1360256,978,Service Improvements
North West Leicestershire District Council,31UH,Finance,Exchequer Services,EXCH,Insight Uk,A021505,21/03/2018,1360260,4765.37,Computing
North West Leicestershire District Council,31UH,Neighbourhoods & Communities,N & C Neighbourhoods,NACN,HOSPICE HOPE,A030628,21/03/2018,1360261,500,Green Footprints Expenditure
North West Leicestershire District Council,31UH,Environmental Health,Environmental Health & Licensing,EEHL,College Garth Boarding Kennels,A000385,21/03/2018,1360264,1966.5,Stray Dog Service
North West Leicestershire District Council,31UH,Leisure & Culture,Cultural Services TIC,CULTIC,Roberts Coaches Limited,A017327,21/03/2018,1360265,1284.52,Theatre Tickets
North West Leicestershire District Council,31UH,Leisure & Culture,Cultural Services Arts & Events,CULTEV,Ashby Dramatic Society Trust,A027431,21/03/2018,1360266,279,Theatre Tickets
North West Leicestershire District Council,31UH,Leisure & Culture,Cultural Services Arts & Events,CULTEV,Ashby Dramatic Society,A021686,21/03/2018,1360267,2915.1,Theatre Tickets
North West Leicestershire District Council,31UH,Housing,HRA Performance & Business Support,HRAPBS,Redacted- Personal Data,A042888,21/03/2018,1360268,1000,Compensation
North West Leicestershire District Council,31UH,Street Management,Environment Transport,ENOT,J F Lloyd & Sons,A000991,21/03/2018,1360274,250,Hire Of Operational Equipment
North West Leicestershire District Council,31UH,Street Management,Environment Transport,ENOT,Aebi Schmidt Uk Limited,A017053,21/03/2018,1360277,519.7,Non Scheduled Maintenance - Parts
North West Leicestershire District Council,31UH,Leisure Centres,Hood Park Leisure Centre,HPLC,Craftsman Quality Lockers Ltd,A039532,21/03/2018,1360279,255,Operational Equipment
North West Leicestershire District Council,31UH,Street Management,Environment Transport,ENOT,Dennis Eagle Limited,A000522,21/03/2018,1360282,619.44,Repairs - Parts
North West Leicestershire District Council,31UH,Housing,HRA Housing Management,HRAHM,PPG Architectural Coatings Ltd,A000876,21/03/2018,1360289,719.29,Internal Decorations
North West Leicestershire District Council,31UH,Planning & Development,Environment Community Planning,ECP,Donington Park Racing Ltd,A040501,27/03/2018,1360296,3995,Room Hire
North West Leicestershire District Council,31UH,Housing,HRA Housing Management,HRAHM,Needhams,A044640,21/03/2018,1360299,500,Ground Rents & Wayleaves
North West Leicestershire District Council,31UH,Finance,Exchequer Services,EXCH,Comensura Limited,A036958,21/03/2018,1360303,36856.48,Agency Staff
North West Leicestershire District Council,31UH,Corporate Director,Human Resources,HR,GatenbySanderson Limited,A034524,21/03/2018,1360304,4260,Employee Advertising
North West Leicestershire District Council,31UH,Legal & Democratic,Legal Services,LDLS,Venn Group Limited,A028530,21/03/2018,1360308,670.12,Agency Staff
North West Leicestershire District Council,31UH,Legal & Democratic,Business Development Team,BDT,Deana Wildgoose,A042162,21/03/2018,1360310,1899.6,Consultants Fees
North West Leicestershire District Council,31UH,Street Management,Environment Transport,ENOT,Water Plus Limited,A044043,21/03/2018,1360312,1759.97,Water Charges (Metered)
North West Leicestershire District Council,31UH,Property Services,Property Facilities Management,PROPFM,Regarde Security Ltd,A013049,21/03/2018,1360318,262.4,Security Services
North West Leicestershire District Council,31UH,Property Services,Property Facilities Management,PROPFM,Regarde Security Ltd,A013049,21/03/2018,1360322,280,Building Security
North West Leicestershire District Council,31UH,Property Services,Property Facilities Management,PROPFM,Regarde Security Ltd,A013049,21/03/2018,1360323,524.8,Building Security
North West Leicestershire District Council,31UH,Street Management,Environment - Street Scene,ESS,EPT SERVICES,A039764,21/03/2018,1360324,312,Operational Equipment
North West Leicestershire District Council,31UH,Information Technology,ICT Services,ICT,BT Business Direct,A039207,21/03/2018,1360327,299.98,Computing
North West Leicestershire District Council,31UH,Leisure Centres,Castle Donington Community College,CDCC,Technical Surfaces Ltd,A000516,21/03/2018,1360328,370,Routine Ground Maintenance
North West Leicestershire District Council,31UH,Street Management,Environment - Street Scene,ESS,Ben Reeve- Lewis,A044654,21/03/2018,1360330,950,Training Courses and Expenses
North West Leicestershire District Council,31UH,Leisure & Culture,Sport & Physical Activity,SPA,King Edward VII Science & Sport,A029490,21/03/2018,1360331,400,Local Sports Alliance
North West Leicestershire District Council,31UH,Neighbourhoods & Communities,N & C Neighbourhoods,NACN,Friends of Grace Dieu Priory Trust,A032362,21/03/2018,1360334,250,Grants
North West Leicestershire District Council,31UH,Information Technology,ICT Services,ICT,Insight Uk,A021505,21/03/2018,1360335,715,Computing
North West Leicestershire District Council,31UH,Property Services,Property Facilities Management,PROPFM,Electract Limited,A000548,27/03/2018,1360342,300,Asset Protection
North West Leicestershire District Council,31UH,Leisure & Culture,Cultural Services Arts & Events,CULTEV,Century Theatre,A043891,21/03/2018,1360346,1500,PACT Sponsorship
North West Leicestershire District Council,31UH,Housing Repairs,HRA Housing Repairs & Maintenance,HRAHRM,CWH Surveyors LLP,A044437,21/03/2018,1360347,760,Legal & Professional Services
North West Leicestershire District Council,31UH,Leisure Centres,Hermitage Bar & Catering,HLBC,Snackline Direct Ltd,A042489,21/03/2018,1360348,376.71,Catering Provisions
North West Leicestershire District Council,31UH,Information Technology,ICT Services,ICT,Cuttlefish Multimedia Ltd,A032102,21/03/2018,1360356,1718.33,Website Maintenance
North West Leicestershire District Council,31UH,Street Management,Environment Parks,ENOP,New Build Landscaping & Home,A043278,21/03/2018,1360357,1000,External Contractor Payments
North West Leicestershire District Council,31UH,Property Services,Property Commercial Lettings,PROPCL,John Merison BMC Ltd,A001092,21/03/2018,1360360,303.44,General Repairs
North West Leicestershire District Council,31UH,Leisure & Culture,Cultural Services Arts & Events,CULTEV,Coalville Times Ltd,A000374,21/03/2018,1360361,474,Advertising
North West Leicestershire District Council,31UH,Finance,Exchequer Services,EXCH,Select Forms Limited,A017790,21/03/2018,1360362,434.74,Other Printing
North West Leicestershire District Council,31UH,Street Management,Environment Transport,ENOT,Triscan Systems Limited,A036521,21/03/2018,1360363,657.76,Operational equipment - repairs and maintenance
North West Leicestershire District Council,31UH,Leisure Centres,Hermitage Leisure Centre,HLC,Franklins International Ltd,A041600,27/03/2018,1360364,2095,Swimming Badges
North West Leicestershire District Council,31UH,Planning & Development,Environment - Development Control,EDC,Leicestershire County Council,A000950,21/03/2018,1360366,10400,Ecology & Archeology Consultancy
North West Leicestershire District Council,31UH,Planning & Development,Environment - Development Control,EDC,Leicestershire County Council,A000950,21/03/2018,1360367,5944,Ecology & Archeology Consultancy
North West Leicestershire District Council,31UH,Street Management,Environment Parks,ENOP,Regarde Security Ltd,A013049,21/03/2018,1360370,918.4,Security Services
North West Leicestershire District Council,31UH,Planning & Development,Building Control,EBC,Leicestershire County Council,A027423,21/03/2018,1360371,1225,Search Fees
North West Leicestershire District Council,31UH,Street Management,Environment Parks,ENOP,David Ogilvie Engineering Ltd,A044613,21/03/2018,1360372,1249.5,Operational Equipment - Purchases
North West Leicestershire District Council,31UH,Legal & Democratic,Legal Services,LDLS,Mulberry Property Developments Ltd,A044482,21/03/2018,1360373,500,Legal Fees Recovered - Section 106
North West Leicestershire District Council,31UH,Finance,Financial Planning,FINPLA,Kings Armoured Security Services Ltd,A004468,21/03/2018,1360381,1225.28,Cash Collection Service
North West Leicestershire District Council,31UH,Housing Repairs,HRA Housing Repairs & Maintenance,HRAHRM,Sure Maintenance Ltd,A040460,21/03/2018,1360491,1155,Plumbing & Heating
North West Leicestershire District Council,31UH,Housing Repairs,HRA Housing Repairs & Maintenance,HRAHRM,Sure Maintenance Ltd,A040460,21/03/2018,1360492,5109,Plumbing & Heating
North West Leicestershire District Council,31UH,Housing Repairs,HRA Housing Repairs & Maintenance,HRAHRM,Sure Maintenance Ltd,A040460,21/03/2018,1360493,1155,Plumbing & Heating
North West Leicestershire District Council,31UH,Housing Repairs,HRA Housing Repairs & Maintenance,HRAHRM,Sure Maintenance Ltd,A040460,21/03/2018,1360494,980,Plumbing & Heating
North West Leicestershire District Council,31UH,Housing Repairs,HRA Housing Repairs & Maintenance,HRAHRM,Sure Maintenance Ltd,A040460,21/03/2018,1360505,4368.15,Plumbing & Heating
North West Leicestershire District Council,31UH,Housing Repairs,HRA Housing Repairs & Maintenance,HRAHRM,Sure Maintenance Ltd,A040460,21/03/2018,1360506,1483,Plumbing & Heating
North West Leicestershire District Council,31UH,Housing Repairs,HRA Housing Repairs & Maintenance,HRAHRM,Sure Maintenance Ltd,A040460,21/03/2018,1360507,1576.3,Plumbing & Heating
North West Leicestershire District Council,31UH,Housing Repairs,HRA Housing Repairs & Maintenance,HRAHRM,Sure Maintenance Ltd,A040460,21/03/2018,1360508,1740,Plumbing & Heating
North West Leicestershire District Council,31UH,Housing Repairs,HRA Housing Repairs & Maintenance,HRAHRM,Sure Maintenance Ltd,A040460,21/03/2018,1360509,1915,Plumbing & Heating
North West Leicestershire District Council,31UH,Housing Repairs,HRA Housing Repairs & Maintenance,HRAHRM,Sure Maintenance Ltd,A040460,21/03/2018,1360510,1483,Plumbing & Heating
North West Leicestershire District Council,31UH,Housing Repairs,HRA Housing Repairs & Maintenance,HRAHRM,Sure Maintenance Ltd,A040460,21/03/2018,1360512,1410,Plumbing & Heating
North West Leicestershire District Council,31UH,Housing Repairs,HRA Housing Repairs & Maintenance,HRAHRM,H20 Utilities Ltd,A043865,21/03/2018,1360513,750,Associated Drainage Services
North West Leicestershire District Council,31UH,Housing Repairs,HRA Housing Repairs & Maintenance,HRAHRM,Orbis Property Protection Ltd,A028149,21/03/2018,1360517,421.5,Void Property Clearance Services
North West Leicestershire District Council,31UH,Housing Repairs,HRA Housing Repairs & Maintenance,HRAHRM,TECSERV UK LIMITED,A028261,21/03/2018,1360522,273.29,Contract Payments (Dws) Ext
North West Leicestershire District Council,31UH,Property Services,Property Facilities Management,PROPFM,ACE Environmental Engineering Ltd,A040690,21/03/2018,1360525,266,Alt & Mtce-Fixed Plant
North West Leicestershire District Council,31UH,Corporate Director,Human Resources,HR,FP Training Ltd,A044636,21/03/2018,1360526,2194,Corporate Training
North West Leicestershire District Council,31UH,Housing Repairs,HRA Housing Repairs & Maintenance,HRAHRM,Emperor Scaffolding Limited,A038405,21/03/2018,1360532,1275,Hire Of Operational Equipment
North West Leicestershire District Council,31UH,Communications,Corporate - Customer Services,CS,Neopost Limited,A000079,21/03/2018,1360544,4000,Postages
North West Leicestershire District Council,31UH,Housing Repairs,HRA Housing Repairs & Maintenance,HRAHRM,Ward Recycling,A035471,21/03/2018,1360548,480.8,Tipping Charges
North West Leicestershire District Council,31UH,Communications,Corporate - Customer Services,CS,Neopost Limited,A000079,21/03/2018,1360550,1500,Postages
North West Leicestershire District Council,31UH,Street Management,Environment Transport,ENOT,Allstar Business Solutions Ltd,A039425,21/03/2018,1360551,2035.22,Fuel
North West Leicestershire District Council,31UH,Finance,Financial Planning,FINPLA,L.C.C.Ivanhoe College,A002200,21/03/2018,1360553,1750,Section 106 Payment
North West Leicestershire District Council,31UH,Street Management,Environment - Street Scene,ESS,Canford Audio Plc,A013376,27/03/2018,1360561,651,Operational Equipment
North West Leicestershire District Council,31UH,Property Services,Property Facilities Management,PROPFM,Gleam Team Services Limited,A000129,27/03/2018,1360566,350,Window Cleaning
North West Leicestershire District Council,31UH,Street Management,Environment Transport,ENOT,Certas Energy Uk Ltd,A043448,27/03/2018,1360568,715.3,Fuel
North West Leicestershire District Council,31UH,Street Management,Environment Transport,ENOT,Certas Energy Uk Ltd,A043448,27/03/2018,1360569,17740.93,Fuel
North West Leicestershire District Council,31UH,Property Services,Property Facilities Management,PROPFM,John Merison BMC Ltd,A001092,27/03/2018,1360570,301.2,General Repairs
North West Leicestershire District Council,31UH,Property Services,Property Facilities Management,PROPFM,John Merison BMC Ltd,A001092,27/03/2018,1360572,356.99,General Repairs
North West Leicestershire District Council,31UH,Property Services,Property Commercial Lettings,PROPCL,John Merison BMC Ltd,A001092,27/03/2018,1360573,376.5,General Repairs
North West Leicestershire District Council,31UH,Legal & Democratic,Legal Services,LDLS,Hopwood Public Relations,A041895,27/03/2018,1360574,1000,Consultants Fees
North West Leicestershire District Council,31UH,Corporate Director,Human Resources,HR,Health Management Ltd,A038840,27/03/2018,1360575,1320,Medical Fees
North West Leicestershire District Council,31UH,Leisure & Culture,Cultural Services Arts & Events,CULTEV,The National Forest Company,A027538,29/03/2018,1360577,9000,National Forest & Beyond Partnership
North West Leicestershire District Council,31UH,Street Management,Environment Transport,ENOT,Freight Transport Association,A027981,27/03/2018,1360582,772,Subscriptions
North West Leicestershire District Council,31UH,Planning & Development,Environment Community Planning,ECP,Groundwork Creswell,A044639,27/03/2018,1360589,400,Training Courses and Expenses
North West Leicestershire District Council,31UH,Street Management,Environment Transport,ENOT,Sherwood Truck and Van Limited,A035120,27/03/2018,1360591,292.81,Repairs - Parts
North West Leicestershire District Council,31UH,Street Management,Environment Transport,ENOT,Shepshed Auto Spares Ltd,A043917,27/03/2018,1360620,309,Transport Costs - Engine Oil
North West Leicestershire District Council,31UH,Street Management,Environment Transport,ENOT,Selby's Garage (Woodhouse) Ltd,A044011,27/03/2018,1360635,512.13,Hire Of Operational Equipment
North West Leicestershire District Council,31UH,Street Management,Environment Transport,ENOT,Selby's Garage (Woodhouse) Ltd,A044011,27/03/2018,1360636,337.28,Hire Of Operational Equipment
North West Leicestershire District Council,31UH,Leisure Centres,Hermitage Leisure Centre,HLC,Coalville Signs,A000370,27/03/2018,1360637,400,Publicity & Promotion
North West Leicestershire District Council,31UH,Leisure Centres,Hermitage Bar & Catering,HLBC,Snackline Direct Ltd,A042489,27/03/2018,1360653,386.2,Catering Provisions
North West Leicestershire District Council,31UH,Street Management,Environment - Street Scene,ESS,Wigston Car Breakers,A043467,27/03/2018,1360654,360,Payments To Contractor
North West Leicestershire District Council,31UH,Leisure & Culture,Cultural Services TIC,CULTIC,Roberts Coaches Limited,A017327,27/03/2018,1360655,627.8,Theatre Tickets
North West Leicestershire District Council,31UH,Street Management,Environment Parks,ENOP,New Build Landscaping & Home,A043278,27/03/2018,1360673,875,External Contractor Payments
North West Leicestershire District Council,31UH,Street Management,Environment Parks,ENOP,Manor farm Nurseries,A034561,27/03/2018,1360676,463,Operational Equipment - Purchases
North West Leicestershire District Council,31UH,Street Management,Environment Parks,ENOP,Manor farm Nurseries,A034561,27/03/2018,1360677,533.25,Operational Equipment - Purchases
North West Leicestershire District Council,31UH,Environmental Health,Environmental Health & Licensing,EEHL,Mega Arumugam,A043638,27/03/2018,1360681,700,Training Courses and Expenses
North West Leicestershire District Council,31UH,Housing Repairs,HRA Housing Repairs & Maintenance,HRAHRM,Emperor Scaffolding Limited,A038405,27/03/2018,1360682,270,Hire Of Operational Equipment
North West Leicestershire District Council,31UH,Housing Repairs,HRA Housing Repairs & Maintenance,HRAHRM,Emperor Scaffolding Limited,A038405,27/03/2018,1360683,1200,Hire Of Operational Equipment
North West Leicestershire District Council,31UH,Housing Repairs,HRA Housing Repairs & Maintenance,HRAHRM,Kaefer Ltd,A044187,27/03/2018,1360685,5192.98,Contract Payments (Dws) Ext
North West Leicestershire District Council,31UH,Housing Repairs,HRA Housing Repairs & Maintenance,HRAHRM,Sure Maintenance Ltd,A040460,27/03/2018,1360686,19045.6,Plumbing & Heating
North West Leicestershire District Council,31UH,Housing Repairs,HRA Housing Repairs & Maintenance,HRAHRM,Sure Maintenance Ltd,A040460,27/03/2018,1360687,2073.87,Plumbing & Heating
North West Leicestershire District Council,31UH,Street Management,Environment - Street Scene,ESS,ICCM,A028279,27/03/2018,1360690,330,Training Courses and Expenses
North West Leicestershire District Council,31UH,Street Management,Environment Transport,ENOT,Dennis Eagle Limited,A000522,29/03/2018,1360693,255.66,Scheduled Servicing - Parts
North West Leicestershire District Council,31UH,Street Management,Environment Waste Management,ENOWM,Straight Plc,A024906,27/03/2018,1360699,10048.5,General Materials
North West Leicestershire District Council,31UH,Legal & Democratic,Business Development Team,BDT,InPhase Ltd,A044108,27/03/2018,1360703,1950,Software licences
North West Leicestershire District Council,31UH,Street Management,Environment Parks,ENOP,Westbury Industrial Supplies Limited,A009933,27/03/2018,1360707,1633.67,Protective Clothing
North West Leicestershire District Council,31UH,Leisure Centres,Hood Park Bar and Catering,HPBC,Molson Coors Brewing Company (UK) Ltd,A044397,27/03/2018,1360708,483.14,Bar Provisions
North West Leicestershire District Council,31UH,Street Management,Environment Transport,ENOT,Scarab Sweepers Limited,A001445,27/03/2018,1360712,586.06,Repairs - Parts
North West Leicestershire District Council,31UH,Street Management,Environment - Street Scene,ESS,NPS Peterborough Ltd,A044569,27/03/2018,1360713,720,Consultants Fees
North West Leicestershire District Council,31UH,Street Management,Environment - Street Scene,ESS,NPS Peterborough Ltd,A044569,27/03/2018,1360714,1800,Consultants Fees
North West Leicestershire District Council,31UH,Information Technology,ICT Services,ICT,Six Degrees Technology Group Ltd,A044205,27/03/2018,1360715,1290.15,Computing
North West Leicestershire District Council,31UH,Property Services,Property Facilities Management,PROPFM,Water Plus Limited,A044043,27/03/2018,1360719,2094.13,Water Charges (Metered)
North West Leicestershire District Council,31UH,Housing Repairs,HRA Housing Repairs & Maintenance,HRAHRM,Timber-Link Fencing Ltd,A033297,27/03/2018,1360723,1100,External Contractor Payments
North West Leicestershire District Council,31UH,Housing Repairs,HRA Housing Repairs & Maintenance,HRAHRM,Timber-Link Fencing Ltd,A033297,27/03/2018,1360724,500,External Contractor Payments
North West Leicestershire District Council,31UH,Housing Repairs,HRA Housing Repairs & Maintenance,HRAHRM,Timber-Link Fencing Ltd,A033297,27/03/2018,1360725,450,External Contractor Payments
North West Leicestershire District Council,31UH,Housing Repairs,HRA Housing Repairs & Maintenance,HRAHRM,Timber-Link Fencing Ltd,A033297,27/03/2018,1360726,720,External Contractor Payments
North West Leicestershire District Council,31UH,Housing Repairs,HRA Housing Repairs & Maintenance,HRAHRM,Timber-Link Fencing Ltd,A033297,27/03/2018,1360727,6000,External Contractor Payments
North West Leicestershire District Council,31UH,Housing Repairs,HRA Housing Repairs & Maintenance,HRAHRM,Timber-Link Fencing Ltd,A033297,27/03/2018,1360728,803,External Contractor Payments
North West Leicestershire District Council,31UH,Housing Repairs,HRA Housing Repairs & Maintenance,HRAHRM,Timber-Link Fencing Ltd,A033297,27/03/2018,1360729,4200,External Contractor Payments
North West Leicestershire District Council,31UH,Housing Repairs,HRA Housing Repairs & Maintenance,HRAHRM,Timber-Link Fencing Ltd,A033297,27/03/2018,1360730,3500,External Contractor Payments
North West Leicestershire District Council,31UH,Leisure & Culture,Cultural Services Arts & Events,CULTEV,Phoenix Arts,A021971,27/03/2018,1360734,750,Centre Screen Project
North West Leicestershire District Council,31UH,Finance,Financial Planning,FINPLA,KPMG LLP,A035156,27/03/2018,1360737,14912.5,External Audit Fees
North West Leicestershire District Council,31UH,Finance,Exchequer Services,EXCH,Click Travel Ltd,A044308,27/03/2018,1360745,1039.48,Travel and Accomodation
North West Leicestershire District Council,31UH,Finance,Exchequer Services,EXCH,HM Revenues & Customs,A038465,27/03/2018,1360747,332,Payment To Inland Revenue
North West Leicestershire District Council,31UH,Property Services,Property Facilities Management,PROPFM,William Freer Ltd,A000639,27/03/2018,1360751,574.5,External Decorations
North West Leicestershire District Council,31UH,Street Management,Environment Transport,ENOT,Pakawaste Ltd,A032627,27/03/2018,1360752,1560,Operational Equipment-repairs and maintenance
North West Leicestershire District Council,31UH,Planning & Development,Environment - Development Control,EDC,Covergold Limited,A002296,29/03/2018,1360753,550,Office Expenses
North West Leicestershire District Council,31UH,Legal & Democratic,Civic Expenses,LDCE,Cuckoo Gap Limited,A000438,27/03/2018,1360756,3098.04,Signs & Notices
North West Leicestershire District Council,31UH,Leisure Centres,Hood Park Leisure Centre,HPLC,Ashby School,A035643,27/03/2018,1360758,536.55,Service Contracts
North West Leicestershire District Council,31UH,Leisure Centres,Hood Park Leisure Centre,HPLC,Admiral Cleaning Supplies Ltd,A040930,29/03/2018,1360759,1011.1,Water Treatment
North West Leicestershire District Council,31UH,Leisure Centres,Hermitage Bar & Catering,HLBC,Molson Coors Brewing Company (UK) Ltd,A044397,27/03/2018,1360763,429.78,Bar Provisions
North West Leicestershire District Council,31UH,Leisure Centres,Hermitage Bar & Catering,HLBC,The Muffin Man,A001162,27/03/2018,1360766,332,Catering Provisions
North West Leicestershire District Council,31UH,Leisure Centres,Hermitage Leisure Centre,HLC,Midlands Cooling Services Ltd,A043433,27/03/2018,1360768,265,Air Conditioning Maintenance
North West Leicestershire District Council,31UH,Leisure Centres,Hermitage Leisure Centre,HLC,Measham Leisure Centre,A027454,27/03/2018,1360770,2366.52,Measham LC Lifestyle DD
North West Leicestershire District Council,31UH,Information Technology,ICT Services,ICT,Cuttlefish Multimedia Ltd,A032102,27/03/2018,1360772,7000,Website Maintenance
North West Leicestershire District Council,31UH,Information Technology,ICT Services,ICT,Insight Uk,A021505,27/03/2018,1360777,2145,Computing
North West Leicestershire District Council,31UH,Planning & Development,Environment Community Planning,ECP,Leicestershire & Rutland  Rural Community Council,A033456,27/03/2018,1360847,2100,Safeguarding
North West Leicestershire District Council,31UH,Corporate Director,Human Resources,HR,Spectra Security Limited,A002190,27/03/2018,1360848,483,Door Access Systems
North West Leicestershire District Council,31UH,Finance,Exchequer Services,EXCH,Comensura Limited,A036958,27/03/2018,1360865,39941.43,Agency Staff
North West Leicestershire District Council,31UH,Housing Repairs,HRA Housing Repairs & Maintenance,HRAHRM,Sure Maintenance Ltd,A040460,27/03/2018,1360866,19050.97,Plumbing & Heating
North West Leicestershire District Council,31UH,Housing Repairs,HRA Housing Repairs & Maintenance,HRAHRM,Sure Maintenance Ltd,A040460,27/03/2018,1360867,2059.98,Plumbing & Heating
North West Leicestershire District Council,31UH,Legal & Democratic,Legal Services,LDLS,Christopher Hopkins,A044688,27/03/2018,1360870,500,Legal & Professional Services
North West Leicestershire District Council,31UH,Housing,HRA Housing Management,HRAHM,Redacted- Personal Data,A044689,27/03/2018,1360871,1000,Under Occupancy Incentives
North West Leicestershire District Council,31UH,Housing Repairs,HRA Housing Repairs & Maintenance,HRAHRM,G Purchase Construction Ltd,A032830,27/03/2018,1360872,16205.44,Housing repairs
North West Leicestershire District Council,31UH,Housing Repairs,HRA Housing Repairs & Maintenance,HRAHRM,G Purchase Construction Ltd,A032830,27/03/2018,1360873,42998.66,Housing repairs
North West Leicestershire District Council,31UH,Housing Repairs,HRA Housing Repairs & Maintenance,HRAHRM,Capita Gas Registration & Ancillary Services Ltd,A036004,27/03/2018,1360874,364,Training Courses and Expenses
North West Leicestershire District Council,31UH,Housing,HRA Older Persons Service,HRAOPS,Tunstall Healthcare (UK) Limited,A001701,27/03/2018,1360876,1592,Alarm System Telephones
North West Leicestershire District Council,31UH,Property Services,Property Commercial Lettings,PROPCL,Coalville Cleaning Services,A003037,27/03/2018,1360881,558.06,Contract Cleaning
North West Leicestershire District Council,31UH,Property Services,Property Commercial Lettings,PROPCL,Coalville Cleaning Services,A003037,27/03/2018,1360882,289.95,Contract Cleaning
North West Leicestershire District Council,31UH,Housing,HRA Performance & Business Support,HRAPBS,Redacted- Personal Data,A044690,27/03/2018,1360883,315,Compensation
North West Leicestershire District Council,31UH,Street Management,Environment Transport,ENOT,Post Office Limited,A008559,27/03/2018,1360884,12675,Licences - Road Fund Licence
North West Leicestershire District Council,31UH,Street Management,Environment Parks,ENOP,David Stanley Transport,A044600,27/03/2018,1360886,275,General Repairs
North West Leicestershire District Council,31UH,Leisure Centres,Hermitage Leisure Centre,HLC,Craftsman Quality Lockers Ltd,A039532,29/03/2018,1360888,335,Operational Equipment
North West Leicestershire District Council,31UH,Street Management,Environment Transport,ENOT,Ford & Slater Group Ltd,A000625,27/03/2018,1360891,760,Vehicle Repairs/Parts
North West Leicestershire District Council,31UH,Street Management,Environment General Technician,ENOGT,Cuckoo Gap Limited,A000438,27/03/2018,1360893,283.1,Routine Ground Maintenance
North West Leicestershire District Council,31UH,Housing,HRA Housing Management,HRAHM,Housing and Care 21,A044691,27/03/2018,1360900,300,Room Hire
North West Leicestershire District Council,31UH,Street Management,Environment - Street Scene,ESS,SLH Planning Solutions Limited,A044102,27/03/2018,1360902,3096.5,Consultants Fees
North West Leicestershire District Council,31UH,Housing,HRA Housing Management,HRAHM,Sure Maintenance Ltd,A040460,27/03/2018,1360904,10820.4,Plumbing & Heating
North West Leicestershire District Council,31UH,Housing Repairs,HRA Housing Repairs & Maintenance,HRAHRM,Sure Maintenance Ltd,A040460,27/03/2018,1360905,606,Plumbing & Heating
North West Leicestershire District Council,31UH,Housing Repairs,HRA Housing Repairs & Maintenance,HRAHRM,Sure Maintenance Ltd,A040460,27/03/2018,1360906,1515,Plumbing & Heating
North West Leicestershire District Council,31UH,Leisure & Culture,Leisure & Cult Mangt,LCM,Ashby de la Zouch Town Council,A027892,27/03/2018,1360907,17298.21,Ashby Project Expenditure
North West Leicestershire District Council,31UH,Street Management,Environment - Street Scene,ESS,Chipside Limited,A035398,27/03/2018,1360916,5501.26,Operational Equipment
North West Leicestershire District Council,31UH,Street Management,Environment - Street Scene,ESS,Chipside Limited,A035398,27/03/2018,1360917,500,Operational Equipment
North West Leicestershire District Council,31UH,Economic Development,Business Focus Group,BFG,Aerofields Ltd,A044694,27/03/2018,1360918,6411.9,Grants
North West Leicestershire District Council,31UH,Street Management,Environment - Street Scene,ESS,EPT SERVICES,A039764,29/03/2018,1360921,360,Publicity & Promotion
North West Leicestershire District Council,31UH,Environmental Health,Environmental Health & Licensing,EEHL,Euro RSCG People T/A Havas People Ltd,A001395,29/03/2018,1360923,337.81,Advertising
North West Leicestershire District Council,31UH,Housing Repairs,HRA Housing Repairs & Maintenance,HRAHRM,Watertec Compliance Solutions Ltd,A044559,29/03/2018,1360926,692.5,Water & Sanitary Repairs
North West Leicestershire District Council,31UH,Housing Repairs,HRA Housing Repairs & Maintenance,HRAHRM,Watertec Compliance Solutions Ltd,A044559,29/03/2018,1360927,2850,Water & Sanitary Repairs
North West Leicestershire District Council,31UH,Housing Repairs,HRA Housing Repairs & Maintenance,HRAHRM,Alliance Contracting Solutions Ltd,A043325,29/03/2018,1360940,21382.73,Place Based Envirnmental Improvements
North West Leicestershire District Council,31UH,Street Management,Environment Transport,ENOT,Selby's Garage (Woodhouse) Ltd,A044011,29/03/2018,1360944,345.95,Hire Of Operational Equipment
North West Leicestershire District Council,31UH,Finance,Exchequer Services,EXCH,Leicestershire County Council,A000951,29/03/2018,1360947,10916.66,Pension Deductions paid over
North West Leicestershire District Council,31UH,Leisure Centres,Hermitage Leisure Centre,HLC,J P Lennard Ltd,A000969,29/03/2018,1360952,339,Operational Equipment
North West Leicestershire District Council,31UH,Leisure Centres,Hood Park Bar and Catering,HPBC,Snackline Direct Ltd,A042489,29/03/2018,1360954,500.72,Catering Provisions
North West Leicestershire District Council,31UH,Housing Repairs,HRA Housing Repairs & Maintenance,HRAHRM,Ward Recycling,A035471,29/03/2018,1360980,268.76,Tipping Charges
North West Leicestershire District Council,31UH,Finance,Head of Finance,HOFI,Blaby District Council,A000180,29/03/2018,1360982,1708.92,Training Courses and Expenses
North West Leicestershire District Council,31UH,Leisure Centres,Hermitage Bar & Catering,HLBC,Snackline Direct Ltd,A042489,29/03/2018,1360983,515,Bar Provisions
North West Leicestershire District Council,31UH,Leisure Centres,Hermitage Leisure Centre,HLC,Water Plus Limited,A044043,29/03/2018,1360984,2231.54,Water Charges (Metered)
North West Leicestershire District Council,31UH,Legal & Democratic,Legal Services,LDLS,Venn Group Limited,A028530,29/03/2018,1360987,467.02,Agency Staff
North West Leicestershire District Council,31UH,Finance,Financial Planning,FINPLA,Total Mobile,A025004,29/03/2018,1360990,47182.11,Computer Development
North West Leicestershire District Council,31UH,Planning & Development,Environment Community Planning,ECP,Fox Medics,A044700,29/03/2018,1360994,420,Training Courses and Expenses
North West Leicestershire District Council,31UH,Property Services,Property Commercial Lettings,PROPCL,John Merison BMC Ltd,A001092,29/03/2018,1360996,2738,General Repairs
North West Leicestershire District Council,31UH,Property Services,Property Commercial Lettings,PROPCL,John Merison BMC Ltd,A001092,29/03/2018,1360997,483.93,General Repairs
North West Leicestershire District Council,31UH,Information Technology,ICT Services,ICT,Centreprise International Ltd,A043431,29/03/2018,1360998,-263,Mobile Telephones
North West Leicestershire District Council,31UH,Finance,Financial Planning,FINPLA,Leicestershire County Council,A000950,29/03/2018,1361001,70956.03,Added Years/Capital Cost
North West Leicestershire District Council,31UH,Planning & Development,Environment Community Planning,ECP,Rapid Vision Systems Ltd,A044267,29/03/2018,1361003,995,CCTV Expenditure
North West Leicestershire District Council,31UH,Property Services,Property Facilities Management,PROPFM,John Merison BMC Ltd,A001092,29/03/2018,1361012,446.45,Asset Protection
North West Leicestershire District Council,31UH,Street Management,Environment Transport,ENOT,Westbury Industrial Supplies Limited,A009933,29/03/2018,1361019,360.6,Protective Clothing
North West Leicestershire District Council,31UH,Information Technology,ICT Services,ICT,BT Business Direct,A039207,29/03/2018,1361025,599.96,Admin Equipment - Purchased & Recharged
North West Leicestershire District Council,31UH,Property Services,Property Commercial Lettings,PROPCL,John Merison BMC Ltd,A001092,29/03/2018,1361030,2131.85,General Repairs
North West Leicestershire District Council,31UH,Corporate Director,Human Resources,HR,Kalu Training and Consultancy,A043918,29/03/2018,1361031,425,Corporate Training
North West Leicestershire District Council,31UH,Corporate Director,Human Resources,HR,Specsavers Corporate Eyecare,A028625,29/03/2018,1361032,525,Eyecare Vouchers
North West Leicestershire District Council,31UH,Information Technology,ICT Services,ICT,Orange Plc,A018592,29/03/2018,1361033,4308.76,Mobile Telephones
North West Leicestershire District Council,31UH,Legal & Democratic,Legal Services,LDLS,HM Revenue & Customs,A038239,29/03/2018,1361034,23250,Legal & Professional Services
North West Leicestershire District Council,31UH,Housing Repairs,HRA Housing Repairs & Maintenance,HRAHRM,Collective Enterprises Ltd,A036453,29/03/2018,1361035,66223.06,General Materials
North West Leicestershire District Council,31UH,Finance,Financial Planning,FINPLA,Scottish Widows Investment Partnerhiip,A039247,29/03/2018,1361037,3600000,Policy Lending
North West Leicestershire District Council,31UH,Finance,Financial Planning,FINPLA,Goldman Sachs Money Market Fund,A039248,29/03/2018,1361038,2500000,Policy Lending
North West Leicestershire District Council,31UH,Finance,Financial Planning,FINPLA,Blackrock Cash Management,A039249,29/03/2018,1361039,1000000,Policy Lending
North West Leicestershire District Council,31UH,Finance,Financial Planning,FINPLA,Scottish Widows Investment Partnerhiip,A039247,29/03/2018,1361040,100000,Policy Lending
North West Leicestershire District Council,31UH,Finance,Financial Planning,FINPLA,The National Forest Company,A027538,29/03/2018,1361042,30935.43,Section 106 Payment
North West Leicestershire District Council,31UH,Finance,Financial Planning,FINPLA,Appleby Magna Parish Council,A000060,29/03/2018,1361043,5894,Section 106 Payment
North West Leicestershire District Council,31UH,Finance,Financial Planning,FINPLA,Stirling Council,A044703,29/03/2018,1361045,1500000,Policy Lending
North West Leicestershire District Council,31UH,Finance,Financial Planning,FINPLA,Thurrock Council,A043910,29/03/2018,1361046,1000000,Policy Lending
North West Leicestershire District Council,31UH,Finance,Exchequer Services,EXCH,H M Land Registry,A000713,29/03/2018,1361047,373,Legal & Professional Services
North West Leicestershire District Council,31UH,Finance,Exchequer Services,EXCH,Total Gas & Power,A033385,29/03/2018,1361048,18690.31,Electricity
North West Leicestershire District Council,31UH,Finance,Exchequer Services,EXCH,Total Gas & Power,A033385,29/03/2018,1361049,22370.24,Electricity
North West Leicestershire District Council,31UH,Finance,Exchequer Services,EXCH,Comensura Limited,A036958,29/03/2018,1361055,42554.66,Agency Staff
